fUSD/lending_fUSD_20240607
["ID","MTS","AMOUNT","RATE_DAILY","PERIOD"]
[328758230,1717769464578,-500.0,0.00029999,4]
[328758231,1717769464587,-500.0,0.00029999,4]
[328758232,1717769464597,-500.0,0.00029999,4]
[328758233,1717769464607,-500.0,0.00029999,4]
[328758234,1717769464616,-500.0,0.00029999,4]
[328758235,1717769464626,-500.0,0.00029999,4]
[328758236,1717769464635,-500.0,0.00029999,4]
[328758237,1717769464644,-500.0,0.00029999,4]
[328758238,1717769464653,-500.0,0.00029999,4]
[328758239,1717769464664,-500.0,0.00029999,4]
[328758240,1717769464674,-500.0,0.00029999,4]
[328758241,1717769464684,-561.36,0.00029999,4]
[328758242,1717769464693,-500.0,0.00029999,4]
[328758243,1717769464702,-500.0,0.00029999,4]
[328758244,1717769464711,-500.0,0.00029999,4]
[328758245,1717769464722,-500.0,0.00029999,4]
[328758246,1717769464733,-500.0,0.00029999,4]
[328758247,1717769464745,-500.0,0.00029999,4]
[328758248,1717769464755,-500.0,0.00029999,4]
[328758249,1717769464765,-500.0,0.00029999,4]
[328758250,1717769464775,-500.0,0.00029999,4]
[328758251,1717769464784,-500.0,0.00029999,4]
[328758252,1717769464794,-500.0,0.00029999,4]
[328758253,1717769464803,-151.0,0.00029999,7]
[328758254,1717769464814,-500.0,0.00029999,4]
[328758255,1717769464824,-377.3,0.00029999,4]
[328758256,1717769464834,-500.0,0.00029999,4]
[328758257,1717769464844,-500.0,0.00029999,4]
[328758258,1717769464854,-266.65,0.00029999,4]
[328758259,1717769464864,-500.0,0.00029999,4]
[328758260,1717769464874,-500.0,0.00029999,4]
[328758261,1717769464884,-500.0,0.00029999,4]
[328758262,1717769464894,-500.0,0.00029999,4]
[328758263,1717769464904,-500.0,0.00029999,4]
[328758264,1717769464915,-500.0,0.00029999,4]
[328758265,1717769464925,-500.0,0.00029999,4]
[328758266,1717769464937,-500.0,0.00029999,4]
[328758267,1717769464946,-500.0,0.00029999,4]
[328758268,1717769464956,-500.0,0.00029999,4]
[328758269,1717769464967,-500.0,0.00029999,4]
[328758270,1717769464978,-500.0,0.00029999,4]
[328758271,1717769464988,-209.28643606,0.00029999,4]
[328758272,1717769464998,-500.0,0.00029999,4]
[328758273,1717769465008,-500.0,0.00029999,4]
[328758274,1717769465017,-500.0,0.00029999,4]
[328758275,1717769465026,-500.0,0.00029999,4]
[328758276,1717769465036,-500.0,0.00029999,4]
[328758277,1717769465046,-500.0,0.00029999,4]
[328758278,1717769465056,-500.0,0.00029999,4]
[328758279,1717769465065,-500.0,0.00029999,4]
[328758280,1717769465075,-500.0,0.00029999,4]
[328758281,1717769465084,-500.0,0.00029999,4]
[328758282,1717769465094,-500.0,0.00029999,4]
[328758283,1717769465103,-500.0,0.00029999,4]
[328758284,1717769465113,-500.0,0.00029999,4]
[328758285,1717769465123,-500.0,0.00029999,4]
[328758286,1717769465133,-157.54565455,0.00029999,4]
[328758287,1717769465142,-500.0,0.00029999,4]
[328758288,1717769465152,-500.0,0.00029999,4]
[328758289,1717769465161,-500.0,0.00029999,4]
[328758290,1717769465171,-500.0,0.00029999,4]
[328758291,1717769465181,-500.0,0.00029999,4]
[328758292,1717769465191,-500.0,0.00029999,4]
[328758293,1717769465201,-500.0,0.00029999,4]
[328758294,1717769465210,-500.0,0.00029999,4]
[328758295,1717769465219,-500.0,0.00029999,4]
[328758296,1717769465228,-500.0,0.00029999,4]
[328758297,1717769465238,-520.31971935,0.00029999,4]
[328758298,1717769465248,-500.0,0.00029999,4]
[328758299,1717769465257,-500.0,0.00029999,4]
[328758300,1717769465267,-422.706164,0.00029999,7]
[328758301,1717769465276,-236.3,0.00029999,4]
[328758302,1717769465286,-422.706164,0.00029999,7]
[328758303,1717769465295,-962.59,0.00029999,4]
[328758304,1717769465305,-962.59,0.00029999,4]
[328758305,1717769465316,-962.59,0.00029999,4]
[328758306,1717769465327,-962.59,0.00029999,4]
[328758307,1717769465336,-962.59,0.00029999,4]
[328758308,1717769465348,-2739.78,0.00029999,4]
[328758309,1717769465359,-500.0,0.00029999,4]
[328758310,1717769465373,-2739.78,0.00029999,4]
[328758311,1717769465383,-962.59,0.00029999,4]
[328758312,1717769465392,-500.0,0.00029999,4]
[328758313,1717769465403,-2739.78,0.00029999,4]
[328758314,1717769465413,-962.59,0.00029999,4]
[328758315,1717769465423,-500.0,0.00029999,4]
[328758316,1717769465433,-2739.78,0.00029999,4]
[328758317,1717769465445,-962.59,0.00029999,4]
[328758318,1717769465456,-500.0,0.00029999,4]
[328758319,1717769465466,-500.0,0.00029999,4]
[328758320,1717769465476,-2739.78,0.00029999,4]
[328758321,1717769465486,-962.59,0.00029999,4]
[328758322,1717769465495,-2693.58,0.00029999,4]
[328758323,1717769465504,-546.4,0.00029999,4]
[328758324,1717769465513,-421.72,0.00029999,4]
[328758325,1717769465523,-2739.78,0.00029999,4]
[328758326,1717769465532,-962.59,0.00029999,4]
[328758327,1717769465542,-2693.58,0.00029999,4]
[328758328,1717769465552,-2739.78,0.00029999,4]
[328758329,1717769465562,-962.59,0.00029999,4]
[328758330,1717769465572,-2693.58,0.00029999,4]
[328758331,1717769465582,-2739.78,0.00029999,4]
[328758332,1717769465592,-962.59,0.00029999,4]
[328758333,1717769465601,-2693.58,0.00029999,4]
[328758334,1717769465611,-2739.78,0.00029999,4]
[328758335,1717769465621,-962.59,0.00029999,4]
[328758336,1717769465631,-2693.58,0.00029999,4]
[328758337,1717769465642,-2739.78,0.00029999,4]
[328758338,1717769465654,-2739.78,0.00029999,4]
[328758339,1717769465664,-962.59,0.00029999,4]
[328758340,1717769465675,-2693.58,0.00029999,4]
[328758341,1717769465686,-2739.78,0.00029999,4]
[328758342,1717769465695,-962.59,0.00029999,4]
[328758343,1717769465706,-2739.78,0.00029999,4]
[328758344,1717769465716,-1591.646609,0.00029999,4]
[328758345,1717769465974,-500.0,0.00029863,4]
[328758346,1717769465984,-193.33259223,0.000299,2]
[328758347,1717769465993,-500.0,0.00029997,4]
[328758348,1717769466003,-1101.933391,0.00029999,4]
[328758349,1717769466013,-962.59,0.00029999,4]
[328758350,1717769466023,-2739.78,0.00029999,4]
[328758351,1717769466034,-2693.58,0.00029999,4]
[328758352,1717769466045,-962.59,0.00029999,4]
[328758353,1717769466055,-2739.78,0.00029999,4]
[328758354,1717769466064,-2693.58,0.00029999,4]
[328758355,1717769466074,-962.59,0.00029999,4]
[328758356,1717769466083,-2739.78,0.00029999,4]
[328758357,1717769466092,-1925.53552674,0.00029999,4]
[328758358,1717769466103,-768.04447326,0.00029999,4]
[328758359,1717769466113,-962.59,0.00029999,4]
[328758360,1717769466122,-2739.78,0.00029999,4]
[328758361,1717769466131,-760.79777887,0.00029999,4]
[328758362,1717769466150,-500.0,0.00029899,4]
[328758363,1717769466159,-750.64844929,0.00029999,4]
[328758364,1717769466171,-1182.13377184,0.00029999,4]
[328758365,1717769466181,-335.30132459,0.00029999,4]
[328758366,1717769466193,-627.38818067,0.00029999,4]
[328758367,1717769466203,-2739.78,0.00029999,4]
[328758368,1717769466213,-1896.15258088,0.00029999,4]
[328758369,1717769466224,-797.42741912,0.00029999,4]
[328758370,1717769466233,-2739.78,0.00029999,4]
[328758371,1717769466243,-2693.58,0.00029999,4]
[328758372,1717769466253,-2739.91425423,0.00029999,4]
[328758373,1717769466262,-2693.58,0.00029999,4]
[328758374,1717769466272,-2693.58,0.00029999,4]
[328758375,1717769466282,-2693.58,0.00029999,4]
[328758376,1717769466291,-2693.7823,0.00029999,4]
[328758377,1717769466301,-500.0,0.00029999,4]
[328758378,1717769466310,-500.0,0.00029999,4]
[328758379,1717769466320,-500.0,0.00029999,4]
[328758380,1717769466330,-500.0,0.00029999,4]
[328758381,1717769466340,-500.0,0.00029999,4]
[328758382,1717769466349,-500.0,0.00029999,4]
[328758383,1717769466361,-500.0,0.00029999,4]
[328758384,1717769466373,-500.0,0.00029999,4]
[328758385,1717769466383,-500.0,0.00029999,4]
[328758386,1717769466392,-500.0,0.00029999,4]
[328758387,1717769466404,-500.0,0.00029999,4]
[328758388,1717769466413,-500.0,0.00029999,4]
[328758389,1717769466423,-500.0,0.00029999,4]
[328758390,1717769466434,-493.24999999,0.00029999,4]
[328758391,1717769466444,-151.89649228,0.00029999,4]
[328758392,1717769466454,-500.0,0.00029999,4]
[328758393,1717769466464,-500.0,0.00029999,4]
[328758394,1717769466473,-500.0,0.00029999,4]
[328758395,1717769466483,-282.85,0.00029999,4]
[328758396,1717769466492,-500.0,0.00029999,4]
[328758397,1717769466501,-500.0,0.00029999,4]
[328758398,1717769466511,-500.0,0.00029999,4]
[328758399,1717769466520,-500.0,0.00029999,4]
[328758400,1717769466529,-500.0,0.00029999,4]
[328758401,1717769466539,-500.0,0.00029999,4]
[328758402,1717769466548,-500.0,0.00029999,4]
[328758403,1717769466558,-151.0,0.00029999,7]
[328758404,1717769466567,-500.0,0.00029999,4]
[328758405,1717769466577,-500.0,0.00029999,4]
[328758406,1717769466586,-266.2,0.00029999,4]
[328758407,1717769466595,-989.08,0.00029999,4]
[328758408,1717769466605,-989.08,0.00029999,4]
[328758409,1717769466614,-989.08,0.00029999,4]
[328758410,1717769466623,-989.08,0.00029999,4]
[328758411,1717769466633,-989.08,0.00029999,4]
[328758412,1717769466643,-6750.0,0.00029999,7]
[328758413,1717769466652,-989.08,0.00029999,4]
[328758414,1717769466662,-989.08,0.00029999,4]
[328758415,1717769466671,-989.08,0.00029999,4]
[328758416,1717769466681,-989.08,0.00029999,4]
[328758417,1717769466690,-989.08,0.00029999,4]
[328758418,1717769466700,-989.08,0.00029999,4]
[328758419,1717769466709,-989.08,0.00029999,4]
[328758420,1717769466719,-989.08,0.00029999,4]
[328758421,1717769466729,-989.08,0.00029999,4]
[328758422,1717769466739,-989.08,0.00029999,4]
[328758423,1717769466748,-989.08,0.00029999,4]
[328758424,1717769466757,-448.43595593,0.00029999,4]
[328758425,1717769466781,-0.00834145,0.00029999,4]
[328758426,1717769466793,-540.63570262,0.00029999,4]
[328758427,1717769466802,-628.69761098,0.00029999,4]
[328758428,1717769466854,-360.38238902,0.00029999,4]
[328758429,1717769466864,-875.74977359,0.00029999,4]
[328758430,1717769466875,-113.33022641,0.00029999,4]
[328758431,1717769466884,-989.12635175,0.00029999,4]
[328758432,1717769466894,-623.04,0.00029999,4]
[328758433,1717769466903,-623.04,0.00029999,4]
[328758434,1717769466913,-623.04,0.00029999,4]
[328758435,1717769466922,-623.04,0.00029999,4]
[328758436,1717769466932,-623.04,0.00029999,4]
[328758437,1717769466942,-623.04,0.00029999,4]
[328758438,1717769466951,-623.04,0.00029999,4]
[328758439,1717769466961,-623.04,0.00029999,4]
[328758440,1717769466971,-623.04,0.00029999,4]
[328758441,1717769466981,-623.04,0.00029999,4]
[328758442,1717769466990,-623.04,0.00029999,4]
[328758443,1717769466999,-623.04,0.00029999,4]
[328758444,1717769467008,-623.04,0.00029999,4]
[328758445,1717769467018,-623.04,0.00029999,4]
[328758446,1717769467027,-623.04,0.00029999,4]
[328758447,1717769467036,-623.04,0.00029999,4]
[328758448,1717769467046,-623.04,0.00029999,4]
[328758449,1717769467055,-623.2548,0.00029999,4]
[328758450,1717769467064,-500.0,0.00029999,4]
[328758451,1717769467074,-500.0,0.00029999,4]
[328758452,1717769467083,-500.0,0.00029999,4]
[328758453,1717769467092,-500.0,0.00029999,4]
[328758454,1717769467101,-500.0,0.00029999,4]
[328758455,1717769467110,-500.0,0.00029999,4]
[328758456,1717769467119,-500.0,0.00029999,4]
[328758457,1717769467127,-500.0,0.00029999,4]
[328758458,1717769467136,-500.0,0.00029999,4]
[328758459,1717769467146,-151.0,0.00029999,7]
[328758460,1717769467154,-152.733844,0.00029999,7]
[328758461,1717769467163,-500.0,0.00029999,4]
[328758462,1717769467173,-500.0,0.00029999,4]
[328758463,1717769467184,-500.0,0.00029999,4]
[328758464,1717769467194,-500.0,0.00029999,4]
[328758465,1717769467203,-500.0,0.00029999,4]
[328758466,1717769467213,-500.0,0.00029999,4]
[328758467,1717769467222,-500.0,0.00029999,4]
[328758468,1717769467231,-500.0,0.00029999,4]
[328758469,1717769467241,-500.0,0.00029999,4]
[328758470,1717769467250,-500.0,0.00029999,4]
[328758471,1717769467260,-500.0,0.00029999,4]
[328758472,1717769467269,-500.0,0.00029999,4]
[328758473,1717769467279,-151.0,0.00029999,7]
[328758474,1717769467288,-500.0,0.00029999,4]
[328758475,1717769467297,-585.30405807,0.00029999,4]
[328758476,1717769467307,-221.68682545,0.00029999,4]
[328758477,1717769467316,-621.94,0.00029999,4]
[328758478,1717769467325,-621.94,0.00029999,4]
[328758479,1717769467334,-151.0,0.00029999,7]
[328758480,1717769467344,-621.94,0.00029999,4]
[328758481,1717769467353,-621.94,0.00029999,4]
[328758482,1717769467365,-621.94,0.00029999,4]
[328758483,1717769467375,-621.94,0.00029999,4]
[328758484,1717769467384,-621.94,0.00029999,4]
[328758485,1717769467393,-151.0,0.00029999,7]
[328758486,1717769467403,-621.94,0.00029999,4]
[328758487,1717769467412,-621.94,0.00029999,4]
[328758488,1717769467422,-770.1,0.00029999,4]
[328758489,1717769467432,-621.94,0.00029999,4]
[328758490,1717769467446,-770.1,0.00029999,4]
[328758491,1717769467456,-6750.0,0.00029999,7]
[328758492,1717769467466,-621.94,0.00029999,4]
[328758493,1717769467476,-770.1,0.00029999,4]
[328758494,1717769467485,-621.94,0.00029999,4]
[328758495,1717769467495,-770.1,0.00029999,4]
[328758496,1717769467505,-621.94,0.00029999,4]
[328758497,1717769467515,-770.1,0.00029999,4]
[328758498,1717769467524,-621.94,0.00029999,4]
[328758499,1717769467534,-500.0,0.00029999,4]
[328758500,1717769467544,-770.1,0.00029999,4]
[328758501,1717769467554,-621.94,0.00029999,4]
[328758502,1717769467563,-500.0,0.00029999,4]
[328758503,1717769467575,-770.1,0.00029999,4]
[328758504,1717769467584,-621.94,0.00029999,4]
[328758505,1717769467594,-500.0,0.00029999,4]
[328758506,1717769467604,-500.0,0.00029999,4]
[328758507,1717769467614,-621.94,0.00029999,4]
[328758508,1717769467624,-770.1,0.00029999,4]
[328758509,1717769467634,-500.0,0.00029999,4]
[328758510,1717769467643,-500.0,0.00029999,4]
[328758511,1717769467653,-621.94,0.00029999,4]
[328758512,1717769467663,-770.1,0.00029999,4]
[328758513,1717769467673,-500.0,0.00029999,4]
[328758514,1717769467684,-500.0,0.00029999,4]
[328758515,1717769467693,-621.94,0.00029999,4]
[328758516,1717769467703,-500.0,0.00029999,4]
[328758517,1717769467713,-500.0,0.00029999,4]
[328758518,1717769467723,-500.0,0.00029999,4]
[328758519,1717769467733,-500.0,0.00029999,4]
[328758520,1717769467742,-770.1,0.00029999,4]
[328758521,1717769467752,-188.10474607,0.00029999,4]
[328758522,1717769467762,-622.06,0.00029999,4]
[328758523,1717769467772,-500.0,0.00029999,4]
[328758524,1717769467782,-770.1,0.00029999,4]
[328758525,1717769467792,-770.1,0.00029999,4]
[328758526,1717769467801,-102509.3120544,0.0003,13]
[328758527,1717769468038,-1692.01033739,0.00029855,15]
[328758528,1717769468050,-3476.05183011,0.00029855,15]
[328758529,1717769468061,-500.0,0.00029863,4]
[328758530,1717769468070,-500.0,0.00029863,4]
[328758531,1717769468080,-500.0,0.00029899,4]
[328758532,1717769468090,-500.0,0.00029899,4]
[328758533,1717769468100,-595.28,0.00029899,4]
[328758534,1717769468110,-500.0,0.00029997,4]
[328758535,1717769468120,-500.0,0.00029998,4]
[328758536,1717769468130,-500.0,0.00029998,4]
[328758537,1717769468139,-59.0681699,0.00029998,4]
[328758538,1717769468152,-440.9318301,0.00029998,4]
[328758539,1717769468161,-432.95376482,0.00029998,4]
[328758540,1717769468172,-67.04623518,0.00029998,4]
[328758541,1717769468189,-500.0,0.00029999,4]
[328758542,1717769468199,-770.1,0.00029999,4]
[328758543,1717769468209,-151.0,0.00029999,7]
[328758544,1717769468219,-150.01,0.00029999,2]
[328758545,1717769468228,-770.1,0.00029999,4]
[328758546,1717769468238,-500.0,0.00029999,4]
[328758547,1717769468247,-120.11157321,0.00029999,4]
[328758548,1717769468539,-649.98842679,0.00029999,4]
[328758549,1717769468549,-500.0,0.00029999,4]
[328758550,1717769468559,-485.33012568,0.00029999,4]
[328758551,1717769468572,-14.66987432,0.00029999,4]
[328758552,1717769468583,-770.1,0.00029999,4]
[328758553,1717769468593,-481.23012568,0.00029999,4]
[328758554,1717769468645,155.0,0.00017258,2]
[328758555,1717769482447,155.0,0.00017258,2]
[328758556,1717769488283,20467.18204767,0.00017258,2]
[328758558,1717769600189,-497.40953962,0.00029995,31]
[328758560,1717769761011,295.29742042,0.0003,40]
[328758561,1717769779532,3648.0,0.00017,2]
[328758562,1717769821510,155.0,0.00017,2]
[328758563,1717769835523,155.0,0.00017,2]
[328758564,1717769855512,188.07182454,0.00017,2]
[328758567,1717770556168,-151.59,0.00024384,2]
[328758568,1717770556191,-247.47,0.00024384,2]
[328758569,1717770556216,-1202.87340608,0.00025,2]
[328758570,1717770556240,-4054.0,0.00025,3]
[328758571,1717770556259,-1250.0,0.00025,2]
[328758572,1717770556279,-10.85089392,0.00025626,3]
[328758573,1717770556315,-141.14910608,0.00025626,3]
[328758574,1717770556337,-150.99,0.00026619,2]
[328758575,1717770556360,-756.85,0.00026619,2]
[328758576,1717770556383,-441.42,0.00026619,2]
[328758577,1717770570696,226.6238354,0.000201,2]
[328758580,1717770579561,478.08,0.0002584,2]
[328758581,1717770586710,226.6238354,0.00022499,2]
[328758584,1717770608717,226.6238354,0.00022499,2]
[328758585,1717770615475,594.86075439,0.000201,2]
[328758586,1717770615502,14400.04617896,0.000201,2]
[328758587,1717770615528,693.8697626,0.000201,2]
[328758588,1717770615556,125085.77,0.000201,2]
[328758596,1717770633052,-407974.42602031,0.000201,2]
[328758597,1717770633062,-226.6238354,0.00022499,2]
[328758598,1717770633075,-314114.2767436,0.00025,2]
[328758599,1717770633087,-1453.94181576,0.00025,2]
[328758600,1717770633098,-1206.97371849,0.00025,2]
[328758601,1717770633110,-3244.55441955,0.00025,2]
[328758602,1717770633122,-503.32943277,0.00025,2]
[328758603,1717770633134,-745.53009067,0.00025,2]
[328758604,1717770633148,-537.6197109,0.00025,2]
[328758605,1717770633160,-1528.35103245,0.00025,2]
[328758606,1717770633173,-1534.30516805,0.00025,2]
[328758607,1717770633382,-5138.826,0.00025,2]
[328758608,1717770633394,-127591.27410151,0.00025,2]
[328758609,1717770633405,-2796.76,0.00025,2]
[328758610,1717770633417,-553.37514591,0.00025,2]
[328758611,1717770633429,-539.69020108,0.00025,2]
[328758632,1717770638869,-559.80948365,0.00024999,2]
[328758636,1717770638880,-149.27317847,0.00025,2]
[328758639,1717770638893,-682.03117682,0.00025,2]
[328758641,1717770638905,-174634.65199568,0.00025,2]
[328758646,1717770638918,-77465.36787332,0.00025,2]
[328758648,1717770638929,-511.44843516,0.00025,2]
[328758649,1717770638942,-916.92440523,0.00025,2]
[328758650,1717770639202,-3531.1,0.00025,2]
[328758651,1717770639215,-969.88053301,0.00025,2]
[328758652,1717770639227,-3652.80990707,0.00025,2]
[328758653,1717770639239,-349.235,0.00025,2]
[328758654,1717770639252,-710.09284545,0.00025,2]
[328758655,1717770639266,-25026.64212167,0.00025,2]
[328758656,1717770639280,-358.9537836,0.00025,2]
[328758657,1717770639293,-515.28705452,0.00025,2]
[328758659,1717770639612,-519.7933878,0.00025,2]
[328758661,1717770639626,-2317.66264658,0.00025,2]
[328758663,1717770639638,-1029.27,0.00025,2]
[328758665,1717770639650,-741.3170906,0.00025,2]
[328758667,1717770639663,-1000.00663,0.00025,2]
[328758670,1717770639676,-995.94,0.00025,2]
[328758860,1717770642126,-186.817728,0.0002499,2]
[328758862,1717770642136,-7726.594272,0.00025,2]
[328758864,1717770643628,-302584.75162532,0.00025,2]
[328758865,1717770643945,-14128.04360993,0.00025,2]
[328758866,1717770643957,-8388.5,0.00025,2]
[328758867,1717770643969,-3802.09503897,0.00025,2]
[328758868,1717770643981,-1316.65079801,0.00025,2]
[328758869,1717770643992,-3105.27553537,0.00025,2]
[328758870,1717770644004,-21772.34946941,0.00025,2]
[328758871,1717770644288,-10047.95424923,0.00025,2]
[328758872,1717770644586,-3179.49398068,0.00025,2]
[328758873,1717770645108,-324128.79577536,0.00025,2]
[328758874,1717770645118,-25819.0,0.00027,3]
[328758875,1717770645128,-422.05308873,0.00027397,2]
[328758876,1717770645138,-260.5,0.00027453,2]
[328758877,1717770645147,-250.0,0.00027454,2]
[328758878,1717770645157,-13114.07,0.00027468,2]
[328758879,1717770645167,-297.78,0.00027495,2]
[328758880,1717770645177,-415.65,0.0002751,2]
[328758881,1717770645186,-340.74,0.00027521,2]
[328758882,1717770645196,-159.25,0.00027534,2]
[328758883,1717770645205,-250.0,0.00027713,2]
[328758884,1717770645214,-1000.0,0.00027731,2]
[328758885,1717770645225,-173.579838,0.00027732,2]
[328758886,1717770645234,-1562.573896,0.00027732,2]
[328758887,1717770645244,-246.193778,0.00027732,2]
[328758888,1717770645254,-180.851123,0.00027732,2]
[328758889,1717770645263,-971.85823,0.00027732,2]
[328758890,1717770645272,-341.459766,0.00027732,2]
[328758891,1717770645281,-186.101951,0.00027732,2]
[328758892,1717770645291,-388.50765,0.00027732,2]
[328758893,1717770645300,-180.851124,0.00027732,2]
[328758894,1717770645310,-1805.35,0.00027748,2]
[328758895,1717770645319,-564.53,0.00027878,2]
[328758896,1717770645329,-1101.71,0.00027878,2]
[328758897,1717770645339,-333.30602689,0.00028,7]
[328758898,1717770645349,-20778.0,0.00028,5]
[328758899,1717770645358,-158.05,0.00028034,2]
[328758900,1717770645368,-1562.573896,0.00028079,2]
[328758901,1717770645377,-971.85823,0.00028079,2]
[328758902,1717770645387,-341.459766,0.00028079,2]
[328758903,1717770645396,-388.50765,0.00028079,2]
[328758904,1717770645406,-478.08,0.00028104,2]
[328758905,1717770645415,-158.05,0.0002812,2]
[328758906,1717770645425,-1797.92,0.00028132,2]
[328758907,1717770645434,-1797.92,0.00028139,2]
[328758908,1717770645444,-1797.92,0.00028147,2]
[328758909,1717770645454,-1797.92,0.00028154,2]
[328758910,1717770645464,-1797.92,0.00028162,2]
[328758911,1717770645474,-1797.92,0.00028169,2]
[328758912,1717770645483,-1797.92,0.00028176,2]
[328758913,1717770645493,-1797.92,0.00028184,2]
[328758914,1717770645502,-1797.92,0.00028191,2]
[328758915,1717770645512,-1797.92,0.00028199,2]
[328758916,1717770645522,-158.05,0.00028206,2]
[328758917,1717770645531,-1797.92,0.00028206,2]
[328758918,1717770645541,-1797.92,0.00028213,2]
[328758919,1717770645551,-1797.92,0.00028221,2]
[328758920,1717770645560,-1797.92,0.00028228,2]
[328758921,1717770645570,-1797.92,0.00028236,2]
[328758922,1717770645579,-1797.92,0.00028243,2]
[328758923,1717770645589,-1797.92,0.0002825,2]
[328758924,1717770645599,-1797.92,0.00028258,2]
[328758925,1717770645608,-1797.92,0.00028265,2]
[328758926,1717770645618,-1797.92,0.00028273,2]
[328758927,1717770645627,-158.05,0.00028292,2]
[328758928,1717770645636,-250.0,0.00028297,2]
[328758929,1717770645646,-169.32,0.00028323,2]
[328758930,1717770645656,-158.05,0.00028378,2]
[328758931,1717770645666,-1562.573896,0.00028426,2]
[328758932,1717770645676,-971.85823,0.00028426,2]
[328758933,1717770645685,-341.459766,0.00028426,2]
[328758934,1717770645695,-388.50765,0.00028426,2]
[328758935,1717770645705,-158.05,0.00028463,2]
[328758936,1717770645715,-1296.53199475,0.00028498,2]
[328758937,1717770645726,-158.05,0.00028549,2]
[328758938,1717770645736,-163.09,0.00028581,2]
[328758939,1717770645749,-158.05,0.00028635,2]
[328758940,1717770645759,-1064.0,0.00028683,2]
[328758941,1717770645769,-152.0,0.00028695,4]
[328758942,1717770645779,-158.05,0.00028721,2]
[328758943,1717770645790,-1562.573896,0.00028772,2]
[328758944,1717770645799,-971.85823,0.00028772,2]
[328758945,1717770645809,-341.459766,0.00028772,2]
[328758946,1717770645820,-158.05,0.00028807,2]
[328758947,1717770645830,-158.05,0.00028893,2]
[328758948,1717770645839,-150.0,0.00028904,2]
[328758949,1717770645849,-158.05,0.00028979,2]
[328758950,1717770645859,-537.86893868,0.00029,2]
[328758951,1717770645869,-443.93183794,0.00029,2]
[328758952,1717770645878,-443.93183794,0.00029,2]
[328758953,1717770645887,-443.93183794,0.00029,2]
[328758954,1717770645897,-443.93183794,0.00029,2]
[328758955,1717770645907,-443.93183794,0.00029,2]
[328758956,1717770645916,-443.93183794,0.00029,2]
[328758957,1717770645925,-158.05,0.00029065,2]
[328758958,1717770645935,-150.0,0.000291,22]
[328758959,1717770645944,-173.579838,0.00029119,2]
[328758960,1717770645953,-1562.573896,0.00029119,2]
[328758961,1717770645963,-971.85823,0.00029119,2]
[328758962,1717770645972,-341.459766,0.00029119,2]
[328758963,1717770645981,-443.93183794,0.00029141,2]
[328758964,1717770645991,-158.05,0.00029151,2]
[328758965,1717770645999,-163.01,0.00029178,2]
[328758966,1717770646009,-167.24,0.00029184,2]
[328758967,1717770646018,-158.05,0.00029237,2]
[328758968,1717770646028,-353.40117818,0.00029319,15]
[328758969,1717770646037,-2104.20793966,0.00029319,15]
[328758970,1717770646047,-158.05,0.00029323,2]
[328758971,1717770646057,-190.45537389,0.0002935,2]
[328758972,1717770646066,-190.45537389,0.00029357,2]
[328758973,1717770646076,-153.63125507,0.00029365,2]